fUST/lending_fUST_20250301
["ID","MTS","AMOUNT","RATE_DAILY","PERIOD"]
[354898044,1740802244466,-500.0,0.00040821,2]
[354898045,1740802244476,-500.0,0.00040821,2]
[354898046,1740802244487,-600.37,0.00040821,2]
[354898047,1740802244496,-757.31,0.00040821,2]
[354898048,1740802244506,-3716.79,0.00040821,2]
[354898049,1740802244517,-500.0,0.00040821,2]
[354898050,1740802244528,-500.0,0.00040821,2]
[354898051,1740802244538,-500.0,0.00040821,2]
[354898052,1740802244549,-500.0,0.00040821,2]
[354898053,1740802244560,-500.0,0.00040821,2]
[354898054,1740802244569,-5827.81,0.00040821,2]
[354898055,1740802244578,-500.0,0.00040821,2]
[354898056,1740802244588,-500.0,0.00040821,2]
[354898057,1740802244597,-500.0,0.00040821,2]
[354898058,1740802244607,-507.39311991,0.00040821,2]
[354898059,1740802244617,-3343.31,0.00040821,2]
[354898060,1740802244627,-500.0,0.00040821,2]
[354898061,1740802244636,-519.4773465,0.00040821,2]
[354898062,1740802244646,-500.0,0.00040821,2]
[354898063,1740802244656,-517.33893347,0.00040821,2]
[354898064,1740802244666,-2131.37,0.00040821,5]
[354898065,1740802244676,-500.0,0.00040821,2]
[354898066,1740802244686,-501.60491329,0.00040821,2]
[354898067,1740802244696,-2719.38,0.00040821,2]
[354898068,1740802244707,-500.0,0.00040821,2]
[354898069,1740802244716,-500.0,0.00040821,2]
[354898070,1740802244726,-500.0,0.00040821,2]
[354898071,1740802244736,-521.441847,0.00040821,2]
[354898072,1740802244745,-500.0,0.00040821,2]
[354898073,1740802244755,-505.27103851,0.00040821,2]
[354898074,1740802244765,-500.0,0.00040821,2]
[354898075,1740802244775,-548.36,0.00040821,2]
[354898076,1740802244784,-4045.94,0.00040821,2]
[354898077,1740802244793,-592.93,0.00040821,2]
[354898078,1740802244805,-507.56002546,0.00040821,2]
[354898079,1740802244816,-9999.57,0.00040821,2]
[354898080,1740802244825,-500.0,0.00040821,2]
[354898081,1740802244835,-500.0,0.00040821,2]
[354898082,1740802244844,-500.0,0.00040821,2]
[354898083,1740802244854,-2054.58,0.00040821,2]
[354898084,1740802244863,-500.0,0.00040821,2]
[354898085,1740802244873,-690.84,0.00040821,120]
[354898086,1740802244882,-500.0,0.00040821,2]
[354898087,1740802244892,-1731.94,0.00040821,2]
[354898088,1740802244902,-500.0,0.00040821,2]
[354898089,1740802244912,-500.0,0.00040821,2]
[354898090,1740802244921,-1335.47,0.00040821,2]
[354898091,1740802244931,-500.0,0.00040821,2]
[354898092,1740802244945,-504.28648906,0.00040821,2]
[354898093,1740802244955,-2023.1,0.00040821,2]
[354898094,1740802244964,-500.0,0.00040821,2]
[354898095,1740802244974,-500.0,0.00040821,2]
[354898096,1740802244984,-770.48,0.00040821,2]
[354898097,1740802244994,-500.0,0.00040821,2]
[354898098,1740802245005,-500.0,0.00040821,2]
[354898099,1740802245016,-603.85,0.00040821,2]
[354898100,1740802245027,-500.0,0.00040821,2]
[354898101,1740802245036,-500.0,0.00040821,2]
[354898102,1740802245046,-984.55,0.00040821,2]
[354898103,1740802245069,-1307.66,0.00040821,2]
[354898104,1740802245080,-752.29,0.00040821,2]
[354898105,1740802245090,-500.0,0.00040821,2]
[354898106,1740802245100,-500.0,0.00040821,2]
[354898107,1740802245111,-500.0,0.00040821,2]
[354898108,1740802245121,-2182.45,0.00040821,2]
[354898109,1740802245132,-500.0,0.00040821,2]
[354898110,1740802245142,-500.0,0.00040821,2]
[354898111,1740802245153,-1433.51,0.00040821,2]
[354898112,1740802245163,-500.0,0.00040821,2]
[354898113,1740802245173,-3038.04,0.00040821,2]
[354898114,1740802245184,-500.0,0.00040821,2]
[354898115,1740802245194,-500.0,0.00040821,2]
[354898116,1740802245204,-500.0,0.00040821,2]
[354898117,1740802245214,-500.0,0.00040821,2]
[354898118,1740802245224,-500.0,0.00041,2]
[354898119,1740802245234,-500.0,0.00041,2]
[354898120,1740802245244,-3574.68,0.00041094,2]
[354898121,1740802245254,-24588.21,0.00041095,120]
[354898122,1740802245264,-269.18299516,0.00041095,2]
[354898123,1740802245274,-856.45,0.00041095,2]
[354898124,1740802245284,-543.92248431,0.00041095,2]
[354898125,1740802245293,-1293.39,0.00041095,2]
[354898126,1740802245305,-500.0,0.00041095,2]
[354898127,1740802245315,-3468.18,0.00041095,2]
[354898128,1740802245325,-846.83,0.00041095,2]
[354898129,1740802245336,-2336.65,0.00041095,2]
[354898130,1740802245346,-500.0,0.00041095,2]
[354898131,1740802245356,-500.0,0.00041095,2]
[354898132,1740802245367,-593.87,0.00041095,2]
[354898133,1740802245377,-1088.4,0.00041095,2]
[354898134,1740802245387,-708.94,0.00041095,2]
[354898135,1740802245398,-2853.7,0.00041095,2]
[354898136,1740802245408,-500.0,0.00041095,2]
[354898137,1740802245418,-500.0,0.00041095,2]
[354898138,1740802245428,-2562.08,0.00041095,2]
[354898139,1740802245439,-500.0,0.00041095,2]
[354898140,1740802245448,-500.0,0.00041095,2]
[354898141,1740802245458,-500.0,0.00041095,2]
[354898142,1740802245468,-500.0,0.00041095,2]
[354898143,1740802245478,-500.0,0.00041095,2]
[354898144,1740802245488,-882.46,0.00041095,2]
[354898145,1740802245498,-1881.98,0.00041095,2]
[354898146,1740802245508,-500.0,0.00041095,2]
[354898147,1740802245518,-583.06,0.00041095,2]
[354898148,1740802245529,-500.0,0.00041095,2]
[354898149,1740802245539,-1133.39,0.00041095,2]
[354898150,1740802245548,-1242.77,0.00041095,2]
[354898151,1740802245559,-500.0,0.00041095,2]
[354898152,1740802245569,-500.0,0.00041095,2]
[354898153,1740802245579,-766.81,0.00041095,2]
[354898154,1740802245589,-500.0,0.00041095,2]
[354898155,1740802245599,-500.0,0.00041095,2]
[354898156,1740802245608,-500.0,0.00041095,2]
[354898157,1740802245618,-500.0,0.00041095,2]
[354898158,1740802245628,-500.0,0.00041095,2]
[354898159,1740802245638,-606.35,0.00041095,2]
[354898160,1740802245647,-500.0,0.00041095,2]
[354898161,1740802245657,-2461.09,0.00041095,2]
[354898162,1740802245667,-500.0,0.00041095,2]
[354898164,1740802245676,-1346.47,0.00041095,2]
[354898166,1740802245690,-500.0,0.00041095,2]
[354898169,1740802245702,-1169.46,0.00041095,2]
[354898171,1740802245712,-500.0,0.00041095,2]
[354898173,1740802245722,-500.0,0.00041095,2]
[354898175,1740802245732,-500.0,0.00041095,2]
[354898177,1740802245743,-1083.17,0.00041095,2]
[354898179,1740802245752,-500.0,0.00041095,2]
[354898180,1740802245763,-54151.77,0.00041095,2]
[354898182,1740802245773,-500.0,0.00041095,2]
[354898184,1740802245782,-500.0,0.00041095,2]
[354898186,1740802245792,-500.0,0.00041095,2]
[354898188,1740802245803,-1952.28,0.00041095,2]
[354898190,1740802245814,-500.0,0.00041095,2]
[354898192,1740802245824,-2404.21,0.00041095,2]
[354898194,1740802245834,-745.89,0.00041095,2]
[354898196,1740802245844,-505.32427382,0.00041095,2]
[354898198,1740802245855,-500.0,0.00041095,2]
[354898199,1740802245865,-600.37,0.00041095,2]
[354898201,1740802245875,-757.31,0.00041095,2]
[354898203,1740802245885,-3716.79,0.00041095,2]
[354898205,1740802245895,-500.0,0.00041095,2]
[354898207,1740802245905,-155.40500895,0.00041095,2]
[354898208,1740802245915,-500.0,0.00041095,2]
[354898209,1740802245926,-329.67957877,0.00041095,2]
[354898210,1740802245938,-521.48031741,0.00041095,2]
[354898211,1740802245949,-5827.81,0.00041095,2]
[354898212,1740802245960,-500.0,0.00041095,2]
[354898213,1740802245971,-500.0,0.00041095,2]
[354898214,1740802245982,-500.0,0.00041095,2]
[354898215,1740802245992,-3343.31,0.00041095,2]
[354898216,1740802246002,-500.0,0.00041095,2]
[354898217,1740802246013,-500.0,0.00041095,2]
[354898218,1740802246024,-2131.37,0.00041095,5]
[354898219,1740802246035,-500.0,0.00041095,2]
[354898220,1740802246045,-2719.38,0.00041095,2]
[354898221,1740802246056,-500.0,0.00041095,2]
[354898222,1740802246066,-500.0,0.00041095,2]
[354898223,1740802246076,-500.0,0.00041095,2]
[354898224,1740802246087,-500.0,0.00041095,2]
[354898225,1740802246098,-500.0,0.00041095,2]
[354898226,1740802246109,-548.36,0.00041095,2]
[354898227,1740802246119,-4045.94,0.00041095,2]
[354898228,1740802246129,-592.93,0.00041095,2]
[354898229,1740802246138,-9999.57,0.00041095,2]
[354898230,1740802246148,-500.0,0.00041095,2]
[354898231,1740802246158,-500.0,0.00041095,2]
[354898232,1740802246168,-500.0,0.00041095,2]
[354898233,1740802246179,-2054.58,0.00041095,2]
[354898234,1740802246189,-500.0,0.00041095,2]
[354898235,1740802246200,-690.84,0.00041095,120]
[354898236,1740802246210,-500.0,0.00041095,2]
[354898237,1740802246220,-1731.94,0.00041095,2]
[354898238,1740802246231,-500.0,0.00041095,2]
[354898239,1740802246241,-257.61973691,0.00041095,2]
[354898240,1740802246251,-1335.47,0.00041095,2]
[354898241,1740802246262,-504.32897292,0.00041095,2]
[354898242,1740802246272,-2023.1,0.00041095,2]
[354898243,1740802246282,-500.0,0.00041095,2]
[354898244,1740802246292,-500.0,0.00041095,2]
[354898245,1740802246303,-770.48,0.00041095,2]
[354898246,1740802246315,-500.0,0.00041095,2]
[354898247,1740802246326,-500.0,0.00041095,2]
[354898248,1740802246337,-603.85,0.00041095,2]
[354898249,1740802246347,-500.0,0.00041095,2]
[354898250,1740802246357,-500.0,0.00041095,2]
[354898251,1740802246367,-984.55,0.00041095,2]
[354898252,1740802246378,-1307.66,0.00041095,2]
[354898253,1740802246388,-752.29,0.00041095,2]
[354898254,1740802246398,-357.93326803,0.00041095,2]
[354898255,1740802246604,-500.0,0.00041095,2]
[354898256,1740802246615,-500.0,0.00041095,2]
[354898257,1740802246624,-2182.45,0.00041095,2]
[354898258,1740802246634,-515.40273893,0.00041095,2]
[354898259,1740802246644,-500.0,0.00041095,2]
[354898260,1740802246653,-1433.51,0.00041095,2]
[354898261,1740802246663,-506.83886918,0.00041095,2]
[354898262,1740802246672,-3038.04,0.00041095,2]
[354898263,1740802246682,-500.0,0.00041095,2]
[354898264,1740802246691,-500.0,0.00041095,2]
[354898265,1740802246700,-500.0,0.00041095,2]
[354898266,1740802246709,-500.0,0.00041133,10]
[354898267,1740802246719,-500.0,0.00041133,10]
[354898268,1740802246728,-500.0,0.00041133,10]
[354898269,1740802246737,-500.0,0.00041133,10]
[354898270,1740802246747,-205.0,0.00041217,2]
[354898271,1740802246756,-151.0,0.000413,20]
[354898272,1740802246765,-500.0,0.00041327,10]
[354898273,1740802246775,-500.0,0.00041327,10]
[354898274,1740802246785,-506.35827061,0.00041327,10]
[354898275,1740802246794,-588.58,0.00041359,3]
[354898276,1740802246805,-856.45,0.00041369,2]
[354898277,1740802246815,-1293.39,0.00041369,2]
[354898278,1740802246825,-500.0,0.00041369,2]
[354898279,1740802246835,-3468.18,0.00041369,2]
[354898280,1740802246845,-846.83,0.00041369,2]
[354898281,1740802246855,-2336.65,0.00041369,2]
[354898282,1740802246865,-500.0,0.00041369,2]
[354898283,1740802246875,-214.74265609,0.00041369,2]
[354898284,1740802246884,-593.87,0.00041369,2]
[354898285,1740802246894,-1088.4,0.00041369,2]
[354898286,1740802246903,-708.94,0.00041369,2]
[354898287,1740802246913,-2853.7,0.00041369,2]
[354898288,1740802246923,-500.0,0.00041369,2]
[354898289,1740802246933,-500.0,0.00041369,2]
[354898290,1740802246948,-2562.08,0.00041369,2]
[354898291,1740802246957,-500.0,0.00041369,2]
[354898292,1740802246967,-500.0,0.00041369,2]
[354898293,1740802246978,-500.0,0.00041369,2]
[354898294,1740802246988,-500.0,0.00041369,2]
[354898295,1740802246998,-500.0,0.00041369,2]
[354898296,1740802247019,-882.46,0.00041369,2]
[354898297,1740802247030,-1881.98,0.00041369,2]
[354898298,1740802247041,-505.87870808,0.00041369,2]
[354898299,1740802247052,-583.06,0.00041369,2]
[354898300,1740802247063,-500.0,0.00041369,2]
[354898301,1740802247074,-1133.39,0.00041369,2]
[354898302,1740802247084,-1242.77,0.00041369,2]
[354898303,1740802247094,-513.72178489,0.00041369,2]
[354898304,1740802247104,-500.0,0.00041369,2]
[354898305,1740802247115,-766.81,0.00041369,2]
[354898306,1740802247125,-500.0,0.00041369,2]
[354898307,1740802247136,-500.0,0.00041369,2]
[354898308,1740802247146,-500.0,0.00041369,2]
[354898309,1740802247156,-500.0,0.00041369,2]
[354898310,1740802247167,-500.0,0.00041369,2]
[354898311,1740802247177,-606.35,0.00041369,2]
[354898312,1740802247187,-500.0,0.00041369,2]
[354898313,1740802247197,-2461.09,0.00041369,2]
[354898314,1740802247207,-500.0,0.00041369,2]
[354898315,1740802247219,-1346.47,0.00041369,2]
[354898316,1740802247229,-500.0,0.00041369,2]
[354898317,1740802247240,-1169.46,0.00041369,2]
[354898318,1740802247251,-500.0,0.00041369,2]
[354898319,1740802247262,-500.0,0.00041369,2]
[354898320,1740802247272,-500.0,0.00041369,2]
[354898322,1740802247282,-1083.17,0.00041369,2]
[354898324,1740802247293,-500.0,0.00041369,2]
[354898326,1740802247305,-54151.77,0.00041369,2]
[354898327,1740802247315,-500.0,0.00041369,2]
[354898329,1740802247328,-266.54341547,0.00041369,2]
[354898331,1740802247344,-500.0,0.00041369,2]
[354898332,1740802247355,-1952.28,0.00041369,2]
[354898333,1740802247365,-500.0,0.00041369,2]
[354898334,1740802247376,-2404.21,0.00041369,2]
[354898335,1740802247386,-745.89,0.00041369,2]
[354898336,1740802247397,-500.0,0.00041369,2]
[354898337,1740802247407,-600.37,0.00041369,2]
[354898338,1740802247418,-757.31,0.00041369,2]
[354898339,1740802247428,-3716.79,0.00041369,2]
[354898340,1740802247439,-500.0,0.00041369,2]
[354898341,1740802247451,-458.64852162,0.00041369,2]
[354898342,1740802247462,-5827.81,0.00041369,2]
[354898343,1740802247472,-192.21601703,0.00041369,2]
[354898344,1740802247483,-500.0,0.00041369,2]
[354898345,1740802247494,-500.0,0.00041369,2]
[354898346,1740802247505,-3343.31,0.00041369,2]
[354898347,1740802247515,-320.33427749,0.00041369,2]
[354898348,1740802247525,-500.0,0.00041369,2]
[354898349,1740802247535,-2131.37,0.00041369,5]
[354898350,1740802247545,-500.0,0.00041369,2]
[354898351,1740802247557,-2719.38,0.00041369,2]
[354898352,1740802247567,-500.0,0.00041369,2]
[354898353,1740802247577,-510.43424536,0.00041369,2]
[354898354,1740802247588,-500.0,0.00041369,2]
[354898355,1740802247599,-500.0,0.00041369,2]
[354898356,1740802247610,-500.0,0.00041369,2]
[354898357,1740802247621,-548.36,0.00041369,2]
[354898358,1740802247631,-4045.94,0.00041369,2]
[354898359,1740802247643,-592.93,0.00041369,2]
[354898360,1740802247654,-9999.57,0.00041369,2]
[354898361,1740802247665,-500.0,0.00041369,2]
[354898362,1740802247676,-500.0,0.00041369,2]
[354898363,1740802247687,-500.0,0.00041369,2]
[354898364,1740802247697,-2054.58,0.00041369,2]
[354898365,1740802247707,-500.0,0.00041369,2]
[354898366,1740802247717,-690.84,0.00041369,120]
[354898367,1740802247727,-500.0,0.00041369,2]
[354898368,1740802247738,-1731.94,0.00041369,2]
[354898369,1740802247748,-500.0,0.00041369,2]
[354898370,1740802247757,-1335.47,0.00041369,2]
[354898371,1740802247767,-2023.1,0.00041369,2]
[354898372,1740802247777,-500.0,0.00041369,2]
[354898373,1740802247787,-500.0,0.00041369,2]
[354898374,1740802247797,-770.48,0.00041369,2]
[354898375,1740802247807,-365.24870982,0.00041369,2]
[354898376,1740802247818,-500.0,0.00041369,2]
[354898377,1740802247828,-603.85,0.00041369,2]
[354898378,1740802247838,-500.0,0.00041369,2]
[354898379,1740802247849,-500.0,0.00041369,2]
[354898380,1740802247860,-984.55,0.00041369,2]
[354898381,1740802247870,-1307.66,0.00041369,2]
[354898382,1740802247880,-752.29,0.00041369,2]
[354898383,1740802247889,-469.46315389,0.00041369,2]
[354898384,1740802247899,-500.0,0.00041369,2]
[354898385,1740802247910,-2182.45,0.00041369,2]
[354898386,1740802247920,-500.0,0.00041369,2]
[354898387,1740802247930,-1433.51,0.00041369,2]
[354898388,1740802247943,-3038.04,0.00041369,2]
[354898389,1740802247954,-500.0,0.00041369,2]
[354898390,1740802247964,-500.0,0.00041369,2]
[354898391,1740802247975,-160.0,0.00041388,5]
[354898392,1740802247984,-3574.68,0.00041433,2]
[354898393,1740802247994,-6148.13571503,0.00041434,60]
[354898394,1740802248004,-293.0,0.0004144,2]
[354898395,1740802248015,-151.0,0.000415,10]
[354898396,1740802248027,-399.428,0.00041623,2]
[354898397,1740802248038,-658.3865056,0.0004163,4]
[354898398,1740802248048,-856.45,0.00041643,2]
[354898399,1740802248058,-1293.39,0.00041643,2]
[354898400,1740802248068,-608.93694024,0.00041643,2]
[354898401,1740802248078,-3468.18,0.00041643,2]
[354898402,1740802248088,-846.83,0.00041643,2]
[354898403,1740802248098,-2336.65,0.00041643,2]
[354898404,1740802248109,-500.0,0.00041643,2]
[354898405,1740802248119,-593.87,0.00041643,2]
[354898406,1740802248129,-1088.4,0.00041643,2]
[354898407,1740802248140,-708.94,0.00041643,2]
[354898408,1740802248150,-2853.7,0.00041643,2]
[354898409,1740802248160,-532.98720396,0.00041643,2]
[354898410,1740802248171,-500.0,0.00041643,2]
[354898411,1740802248181,-2562.08,0.00041643,2]
[354898412,1740802248192,-500.0,0.00041643,2]
[354898413,1740802248203,-500.0,0.00041643,2]
[354898414,1740802248213,-500.0,0.00041643,2]
[354898415,1740802248225,-500.0,0.00041643,2]
[354898416,1740802248236,-432.81210842,0.00041643,2]
[354898417,1740802248247,-882.46,0.00041643,2]
[354898418,1740802248258,-1881.98,0.00041643,2]
[354898419,1740802248270,-583.06,0.00041643,2]
[354898420,1740802248281,-500.0,0.00041643,2]
[354898421,1740802248291,-1133.39,0.00041643,2]
[354898422,1740802248302,-1242.77,0.00041643,2]
[354898423,1740802248312,-593.01578155,0.00041643,2]
[354898424,1740802248323,-766.81,0.00041643,2]
[354898425,1740802248333,-500.0,0.00041643,2]
[354898426,1740802248344,-500.0,0.00041643,2]
[354898427,1740802248354,-500.0,0.00041643,2]
[354898428,1740802248364,-500.0,0.00041643,2]
[354898429,1740802248374,-500.0,0.00041643,2]
[354898430,1740802248384,-606.35,0.00041643,2]
[354898431,1740802248394,-196.14217479,0.00041643,2]
[354898432,1740802248404,-2461.09,0.00041643,2]
[354898433,1740802248414,-500.0,0.00041643,2]
[354898434,1740802248424,-1346.47,0.00041643,2]
[354898435,1740802248434,-500.0,0.00041643,2]
[354898436,1740802248444,-1169.46,0.00041643,2]
[354898437,1740802248454,-500.0,0.00041643,2]
[354898438,1740802248463,-500.0,0.00041643,2]
[354898439,1740802248472,-505.34826254,0.00041643,2]
[354898440,1740802248482,-1083.17,0.00041643,2]
[354898441,1740802248492,-500.0,0.00041643,2]
[354898442,1740802248501,-54151.77,0.00041643,2]
[354898443,1740802248511,-500.0,0.00041643,2]
[354898444,1740802248521,-500.0,0.00041643,2]
[354898445,1740802248531,-1952.28,0.00041643,2]
[354898446,1740802248541,-500.0,0.00041643,2]
[354898447,1740802248552,-2404.21,0.00041643,2]
[354898448,1740802248562,-745.89,0.00041643,2]
[354898449,1740802248572,-500.0,0.00041643,2]
[354898450,1740802248582,-600.37,0.00041643,2]
[354898451,1740802248591,-757.31,0.00041643,2]
[354898452,1740802248601,-3716.79,0.00041643,2]
[354898453,1740802248611,-508.01824028,0.00041643,2]
[354898454,1740802248621,-5827.81,0.00041643,2]
[354898455,1740802248632,-500.0,0.00041643,2]
[354898456,1740802248641,-500.0,0.00041643,2]
[354898457,1740802248651,-3343.31,0.00041643,2]
[354898458,1740802248660,-500.0,0.00041643,2]
[354898459,1740802248670,-2131.37,0.00041643,5]
[354898460,1740802248680,-500.0,0.00041643,2]
[354898461,1740802248690,-2719.38,0.00041643,2]
[354898462,1740802248700,-500.0,0.00041643,2]
[354898463,1740802248710,-500.0,0.00041643,2]
[354898464,1740802248721,-500.0,0.00041643,2]
[354898465,1740802248730,-500.0,0.00041643,2]
[354898466,1740802248741,-548.36,0.00041643,2]
[354898467,1740802248750,-4045.94,0.00041643,2]
[354898468,1740802248760,-592.93,0.00041643,2]
[354898469,1740802248770,-9999.57,0.00041643,2]
[354898470,1740802248779,-500.0,0.00041643,2]
[354898471,1740802248789,-500.0,0.00041643,2]
[354898472,1740802248799,-500.0,0.00041643,2]
[354898473,1740802248809,-2054.58,0.00041643,2]
[354898474,1740802248819,-500.0,0.00041643,2]
[354898475,1740802248829,-690.84,0.00041643,120]
[354898476,1740802248839,-515.3825217,0.00041643,2]
[354898477,1740802248849,-1731.94,0.00041643,2]
[354898478,1740802248858,-380.4116414,0.00041643,2]
[354898479,1740802248868,-1335.47,0.00041643,2]
[354898480,1740802248878,-2023.1,0.00041643,2]
[354898481,1740802248888,-500.0,0.00041643,2]
[354898482,1740802248898,-500.0,0.00041643,2]
[354898483,1740802248908,-770.48,0.00041643,2]
[354898484,1740802248917,-500.0,0.00041643,2]
[354898485,1740802248927,-603.85,0.00041643,2]
[354898486,1740802248938,-497.16,0.00041643,2]
[354898487,1740802248950,-500.0,0.00041643,2]
[354898488,1740802248960,-984.55,0.00041643,2]
[354898489,1740802248970,-1307.66,0.00041643,2]
[354898490,1740802248981,-752.29,0.00041643,2]
[354898491,1740802248991,-500.0,0.00041643,2]
[354898492,1740802249000,-2182.45,0.00041643,2]
[354898493,1740802249010,-614.75925659,0.00041643,2]
[354898494,1740802249023,-1433.51,0.00041643,2]
[354898495,1740802249035,-3038.04,0.00041643,2]
[354898496,1740802249045,-387.93605932,0.00041643,2]
[354898497,1740802249054,-500.0,0.00041643,2]
[354898498,1740802249065,-3266.866,0.000418,110]
[354898499,1740802249226,-64646.4,0.000418,2]
[354898500,1740802249237,-64646.4,0.000418,2]
[354898501,1740802249246,-64646.4,0.000418,2]
[354898502,1740802249256,-64646.4,0.000418,2]
[354898503,1740802249266,-64646.4,0.000418,2]
[354898504,1740802249275,-64646.4,0.000418,2]
[354898505,1740802249286,-64646.4,0.000418,2]
[354898506,1740802249296,-64646.4,0.000418,2]
[354898507,1740802249306,-64646.4,0.000418,2]
[354898508,1740802249316,-64646.4,0.000418,2]
[354898509,1740802249326,-64646.4,0.000418,2]
[354898510,1740802249337,-64646.4,0.000418,2]
[354898511,1740802249347,-64646.4,0.000418,2]
[354898512,1740802249357,-64646.4,0.000418,2]
[354898513,1740802249367,-64646.4,0.000418,2]
[354898514,1740802249377,-64646.4,0.000418,2]
[354898515,1740802249386,-64646.4,0.000418,2]
[354898516,1740802249397,-64646.4,0.000418,2]
[354898517,1740802249406,-13872.8,0.000418,2]
[354898518,1740802249415,-3574.68,0.00041899,2]
[354898519,1740802249425,-3574.68,0.00041899,2]
[354898520,1740802249433,-3574.68,0.00041899,2]
[354898521,1740802249443,-3574.68,0.00041899,2]
[354898522,1740802249452,-3574.68,0.00041899,2]
[354898523,1740802249462,-3574.68,0.00041899,2]
[354898524,1740802249472,-3574.68,0.00041899,2]
[354898525,1740802249482,-3574.68,0.00041899,2]
[354898526,1740802249492,-3574.68,0.00041899,2]
[354898527,1740802249501,-3574.68,0.00041899,2]
[354898528,1740802249511,-3574.68,0.00041899,2]
[354898529,1740802249521,-3574.68,0.00041899,2]
[354898530,1740802249531,-3574.68,0.00041899,2]
[354898531,1740802249541,-3574.68,0.00041899,2]
[354898532,1740802249550,-3574.79610517,0.00041899,2]
[354898533,1740802249559,-222000.0,0.000419,2]
[354898534,1740802249568,-150.0,0.000419,120]
[354898535,1740802249577,-174.723508,0.000419,120]
[354898536,1740802249586,-174.723508,0.000419,120]
[354898537,1740802249595,-856.45,0.00041917,2]
[354898538,1740802249604,-1293.39,0.00041917,2]
[354898539,1740802249614,-3468.18,0.00041917,2]
[354898540,1740802249624,-846.83,0.00041917,2]
[354898541,1740802249633,-500.0,0.00041917,2]
[354898542,1740802249643,-2336.65,0.00041917,2]
[354898543,1740802249652,-593.87,0.00041917,2]
[354898544,1740802249662,-1088.4,0.00041917,2]
[354898545,1740802249671,-708.94,0.00041917,2]
[354898546,1740802249681,-2853.7,0.00041917,2]
[354898547,1740802249691,-500.0,0.00041917,2]
[354898548,1740802249700,-2562.08,0.00041917,2]
[354898549,1740802249709,-500.0,0.00041917,2]
[354898550,1740802249719,-500.0,0.00041917,2]
[354898551,1740802249728,-500.0,0.00041917,2]
[354898552,1740802249738,-500.0,0.00041917,2]
[354898553,1740802249748,-882.46,0.00041917,2]
[354898554,1740802249758,-1881.98,0.00041917,2]
[354898555,1740802249767,-583.06,0.00041917,2]
[354898556,1740802249776,-500.0,0.00041917,2]
[354898557,1740802249786,-1133.39,0.00041917,2]
[354898558,1740802249795,-1242.77,0.00041917,2]
[354898559,1740802249805,-766.81,0.00041917,2]
[354898560,1740802249815,-500.0,0.00041917,2]
[354898561,1740802249824,-500.0,0.00041917,2]
[354898562,1740802249834,-500.0,0.00041917,2]
[354898563,1740802249843,-500.0,0.00041917,2]
[354898564,1740802249852,-500.0,0.00041917,2]
[354898565,1740802249862,-606.35,0.00041917,2]
[354898566,1740802249871,-2461.09,0.00041917,2]
[354898567,1740802249880,-500.0,0.00041917,2]
[354898568,1740802249890,-1346.47,0.00041917,2]
[354898569,1740802249899,-500.0,0.00041917,2]
[354898570,1740802249908,-1169.46,0.00041917,2]